[Event "Titled Tuesday Blitz May 4 2021"]
[White "Villegas, Pierre"]
[Black "Srisshhhtea"]
[WhiteFideId "654183"]
[WhiteElo "2411"]
[BlackElo "2391"]
[Result "1/2-1/2"]
[Round "06"]
[TimeControl "180+1"]
[Date "2021.05.04"]
[WhiteClock "0:00:06"]
[BlackClock "0:00:03"]

1. d4 {[%clk 0:03:00]}  Nf6 {[%clk 0:02:56]} 2. c4 {[%clk 0:03:00]}  c5 {[%clk 0:02:55]} 3. d5 {[%clk 0:03:00]}  b5 {[%clk 0:02:54]} 4. cxb5 {[%clk 0:03:01]}  a6 {[%clk 0:02:53]} 5. bxa6 {[%clk 0:03:02]}  Bxa6 {[%clk 0:02:52]} 6. Nc3 {[%clk 0:03:02]}  g6 {[%clk 0:02:51]} 7. e4 {[%clk 0:03:02]}  d6 {[%clk 0:02:51]} 8. Nf3 {[%clk 0:02:53]}  Bg7 {[%clk 0:02:49]} 9. Bxa6 {[%clk 0:02:52]}  Nxa6 {[%clk 0:02:49]} 10. O-O {[%clk 0:02:52]}  O-O {[%clk 0:02:49]} 11. Qe2 {[%clk 0:02:50]}  Qb6 {[%clk 0:02:49]} 12. Bd2 {[%clk 0:02:28]}  Rfb8 {[%clk 0:02:33]} 13. Rfb1 {[%clk 0:02:26]}  Nd7 {[%clk 0:02:30]} 14. a4 {[%clk 0:02:14]}  Nb4 {[%clk 0:02:15]} 15. Nb5 {[%clk 0:02:07]}  Nc2 {[%clk 0:02:10]} 16. Ra2 {[%clk 0:02:04]}  Qa6 {[%clk 0:01:55]} 17. Bc3 {[%clk 0:01:38]}  Nb4 {[%clk 0:01:52]} 18. Ra3 {[%clk 0:01:27]}  Nb6 {[%clk 0:01:41]} 19. Bxg7 {[%clk 0:01:09]}  Kxg7 {[%clk 0:01:42]} 20. b3 {[%clk 0:01:09]}  Kg8 {[%clk 0:01:36]} 21. Nd2 {[%clk 0:00:56]}  Nd7 {[%clk 0:01:21]} 22. Nc4 {[%clk 0:00:54]}  Nb6 {[%clk 0:01:13]} 23. Nc7 {[%clk 0:00:51]}  Qa7 {[%clk 0:01:07]} 24. Nxa8 {[%clk 0:00:50]}  Nxc4 {[%clk 0:01:07]} 25. Qxc4 {[%clk 0:00:45]}  Qxa8 {[%clk 0:01:05]} 26. a5 {[%clk 0:00:39]}  Qa7 {[%clk 0:00:47]} 27. a6 {[%clk 0:00:37]}  Rb6 {[%clk 0:00:46]} 28. Rba1 {[%clk 0:00:37]}  Kg7 {[%clk 0:00:22]} 29. h4 {[%clk 0:00:36]}  h5 {[%clk 0:00:20]} 30. f3 {[%clk 0:00:36]}  Kg8 {[%clk 0:00:20]} 31. Kh2 {[%clk 0:00:36]}  Kg7 {[%clk 0:00:21]} 32. g4 {[%clk 0:00:26]}  hxg4 {[%clk 0:00:20]} 33. fxg4 {[%clk 0:00:27]}  Rb8 {[%clk 0:00:19]} 34. Qc3+ {[%clk 0:00:23]}  f6 {[%clk 0:00:17]} 35. Kg3 {[%clk 0:00:22]}  Kf7 {[%clk 0:00:15]} 36. g5 {[%clk 0:00:20]}  Rf8 {[%clk 0:00:14]} 37. Rf1 {[%clk 0:00:19]}  Kg7 {[%clk 0:00:13]} 38. Qc4 {[%clk 0:00:12]}  fxg5 {[%clk 0:00:11]} 39. Rxf8 {[%clk 0:00:11]}  Kxf8 {[%clk 0:00:12]} 40. hxg5 {[%clk 0:00:11]}  Kg7 {[%clk 0:00:10]} 41. Ra1 {[%clk 0:00:11]}  Kg8 {[%clk 0:00:07]} 42. Kg4 {[%clk 0:00:07]}  Qd7+ {[%clk 0:00:06]} 43. Kg3 {[%clk 0:00:07]}  Qa7 {[%clk 0:00:06]} 44. Qf1 {[%clk 0:00:07]}  Kg7 {[%clk 0:00:03]} 45. Qc4 {[%clk 0:00:06]}  Kg8 {[%clk 0:00:03]} 1/2-1/2


[Site "https://www.chess.com"]

[Event "Titled Tuesday Blitz May 4 2021"]
[White "Visakh N R"]
[Black "Gusarov, Grigory"]
[WhiteFideId "25012223"]
[BlackFideId "24102172"]
[WhiteElo "2428"]
[BlackElo "2285"]
[Result "0-1"]
[Round "06"]
[TimeControl "180+1"]
[Date "2021.05.04"]
[WhiteClock "0:00:02"]
[BlackClock "0:01:07"]

1. Nf3 {[%clk 0:03:00]}  d5 {[%clk 0:02:57]} 2. e3 {[%clk 0:02:58]}  c6 {[%clk 0:02:57]} 3. c4 {[%clk 0:02:53]}  Nf6 {[%clk 0:02:58]} 4. b3 {[%clk 0:02:51]}  Bg4 {[%clk 0:02:56]} 5. Bb2 {[%clk 0:02:47]}  Nbd7 {[%clk 0:02:54]} 6. h3 {[%clk 0:02:35]}  Bh5 {[%clk 0:02:50]} 7. Be2 {[%clk 0:02:34]}  e6 {[%clk 0:02:49]} 8. O-O {[%clk 0:02:33]}  Bd6 {[%clk 0:02:47]} 9. d4 {[%clk 0:02:02]}  O-O {[%clk 0:02:42]} 10. Ne5 {[%clk 0:01:48]}  Bxe2 {[%clk 0:02:41]} 11. Qxe2 {[%clk 0:01:49]}  Bxe5 {[%clk 0:02:29]} 12. dxe5 {[%clk 0:01:49]}  Ne4 {[%clk 0:02:30]} 13. Nc3 {[%clk 0:01:42]}  Nxc3 {[%clk 0:02:28]} 14. Bxc3 {[%clk 0:01:43]}  Qc7 {[%clk 0:02:19]} 15. f4 {[%clk 0:01:42]}  Rfd8 {[%clk 0:02:15]} 16. Bd4 {[%clk 0:01:28]}  c5 {[%clk 0:02:02]} 17. Bb2 {[%clk 0:01:27]}  dxc4 {[%clk 0:02:03]} 18. bxc4 {[%clk 0:01:26]}  Nb8 {[%clk 0:01:57]} 19. f5 {[%clk 0:01:23]}  exf5 {[%clk 0:01:57]} 20. Rxf5 {[%clk 0:01:24]}  Nc6 {[%clk 0:01:57]} 21. Raf1 {[%clk 0:01:23]}  Rd7 {[%clk 0:01:54]} 22. Qg4 {[%clk 0:01:20]}  Re8 {[%clk 0:01:49]} 23. e6 {[%clk 0:01:10]}  fxe6 {[%clk 0:01:48]} 24. Rxc5 {[%clk 0:00:43]}  Qb6 {[%clk 0:01:36]} 25. Ba3 {[%clk 0:00:23]}  Qa6 {[%clk 0:01:24]} 26. Qh5 {[%clk 0:00:09]}  g6 {[%clk 0:01:21]} 27. Rg5 {[%clk 0:00:09]}  Rg7 {[%clk 0:01:13]} 28. Qf3 {[%clk 0:00:02]}  Qxa3 {[%clk 0:01:10]} 29. h4 {[%clk 0:00:02]}  Rf8 {[%clk 0:01:07]} 0-1


[Site "https://www.chess.com"]

[Event "Titled Tuesday Blitz May 4 2021"]
[White "Voege, Tobias"]
[Black "Almeida Junior, Alvaro Alves de"]
[WhiteFideId "1270513"]
[BlackFideId "2149974"]
[WhiteElo "2283"]
[BlackElo "2097"]
[Result "1-0"]
[Round "06"]
[TimeControl "180+1"]
[Date "2021.05.04"]
[WhiteClock "0:00:08"]
[BlackClock "0:00:03"]

1. d4 {[%clk 0:03:00]}  Nf6 {[%clk 0:03:00]} 2. c4 {[%clk 0:03:00]}  g6 {[%clk 0:03:00]} 3. Nc3 {[%clk 0:03:00]}  d5 {[%clk 0:03:01]} 4. cxd5 {[%clk 0:03:00]}  Nxd5 {[%clk 0:03:02]} 5. e4 {[%clk 0:02:59]}  Nxc3 {[%clk 0:03:02]} 6. bxc3 {[%clk 0:03:00]}  Bg7 {[%clk 0:03:03]} 7. Bc4 {[%clk 0:03:00]}  c5 {[%clk 0:03:03]} 8. Ne2 {[%clk 0:03:01]}  O-O {[%clk 0:03:03]} 9. O-O {[%clk 0:03:01]}  Nc6 {[%clk 0:03:01]} 10. Be3 {[%clk 0:03:01]}  Bg4 {[%clk 0:02:41]} 11. f3 {[%clk 0:03:00]}  cxd4 {[%clk 0:02:42]} 12. cxd4 {[%clk 0:03:01]}  Bd7 {[%clk 0:01:29]} 13. Rb1 {[%clk 0:02:49]}  b6 {[%clk 0:01:27]} 14. Qd2 {[%clk 0:02:48]}  Na5 {[%clk 0:01:09]} 15. Ba6 {[%clk 0:02:38]}  Bc8 {[%clk 0:01:09]} 16. Bd3 {[%clk 0:02:32]}  Bb7 {[%clk 0:01:08]} 17. Kh1 {[%clk 0:02:26]}  Rc8 {[%clk 0:01:08]} 18. Bh6 {[%clk 0:02:20]}  Nc4 {[%clk 0:01:03]} 19. Bxc4 {[%clk 0:02:11]}  Rxc4 {[%clk 0:01:04]} 20. Bxg7 {[%clk 0:02:10]}  Kxg7 {[%clk 0:01:05]} 21. d5 {[%clk 0:02:04]}  Qc7 {[%clk 0:01:05]} 22. Qg5 {[%clk 0:02:00]}  h6 {[%clk 0:00:59]} 23. Qg4 {[%clk 0:01:53]}  Rc2 {[%clk 0:00:49]} 24. Nd4 {[%clk 0:01:45]}  Rxa2 {[%clk 0:00:49]} 25. Rbc1 {[%clk 0:01:33]}  Qe5 {[%clk 0:00:46]} 26. Nc6 {[%clk 0:01:08]}  Bxc6 {[%clk 0:00:39]} 27. dxc6 {[%clk 0:01:08]}  e6 {[%clk 0:00:39]} 28. Rfd1 {[%clk 0:01:01]}  Rc8 {[%clk 0:00:37]} 29. h4 {[%clk 0:00:58]}  h5 {[%clk 0:00:33]} 30. Qh3 {[%clk 0:00:56]}  b5 {[%clk 0:00:21]} 31. Qh2 {[%clk 0:00:25]}  Qxh2+ {[%clk 0:00:20]} 32. Kxh2 {[%clk 0:00:25]}  Ra6 {[%clk 0:00:20]} 33. c7 {[%clk 0:00:24]}  b4 {[%clk 0:00:03]} 34. Rd8 {[%clk 0:00:19]}  Rxc7 {[%clk 0:00:02]} 35. Rxc7 {[%clk 0:00:18]}  Rb6 {[%clk 0:00:03]} 36. Rdd7 {[%clk 0:00:15]}  b3 {[%clk 0:00:02]} 37. Rc1 {[%clk 0:00:09]}  a5 {[%clk 0:00:02]} 38. Rd4 {[%clk 0:00:08]}  b2 {[%clk 0:00:02]} 39. Rb1 {[%clk 0:00:08]}  Rb5 {[%clk 0:00:02]} 40. Rd2 {[%clk 0:00:08]}  a4 {[%clk 0:00:03]} 41. Rdxb2 {[%clk 0:00:08]} 1-0


[Site "https://www.chess.com"]

[Event "Titled Tuesday Blitz May 4 2021"]
[White "Volkov, Maksim"]
[Black "Gedgafov, Chamal"]
[WhiteFideId "54123070"]
[BlackFideId "34130621"]
[WhiteElo "2113"]
[BlackElo "2005"]
[Result "1-0"]
[Round "06"]
[TimeControl "180+1"]
[Date "2021.05.04"]
[WhiteClock "0:01:39"]
[BlackClock "0:02:00"]

1. d4 {[%clk 0:03:00]}  Nf6 {[%clk 0:02:58]} 2. c4 {[%clk 0:02:59]}  e6 {[%clk 0:02:59]} 3. g3 {[%clk 0:02:58]}  Bb4+ {[%clk 0:02:55]} 4. Bd2 {[%clk 0:02:57]}  Be7 {[%clk 0:02:55]} 5. Nf3 {[%clk 0:02:57]}  d5 {[%clk 0:02:55]} 6. Bg2 {[%clk 0:02:57]}  b6 {[%clk 0:02:56]} 7. cxd5 {[%clk 0:02:56]}  exd5 {[%clk 0:02:55]} 8. O-O {[%clk 0:02:56]}  Bb7 {[%clk 0:02:55]} 9. Nc3 {[%clk 0:02:56]}  O-O {[%clk 0:02:56]} 10. Ne5 {[%clk 0:02:56]}  c6 {[%clk 0:02:55]} 11. Bf4 {[%clk 0:02:53]}  Nfd7 {[%clk 0:02:53]} 12. e4 {[%clk 0:02:51]}  Nxe5 {[%clk 0:02:52]} 13. dxe5 {[%clk 0:02:49]}  d4 {[%clk 0:02:52]} 14. Ne2 {[%clk 0:02:44]}  c5 {[%clk 0:02:51]} 15. Nc1 {[%clk 0:02:40]}  Nd7 {[%clk 0:02:49]} 16. b3 {[%clk 0:02:39]}  g5 {[%clk 0:02:48]} 17. Qg4 {[%clk 0:02:29]}  h6 {[%clk 0:02:42]} 18. e6 {[%clk 0:02:21]}  Nf6 {[%clk 0:02:38]} 19. exf7+ {[%clk 0:02:17]}  Rxf7 {[%clk 0:02:39]} 20. Qf5 {[%clk 0:02:01]}  gxf4 {[%clk 0:02:36]} 21. Qxf4 {[%clk 0:02:01]}  Nxe4 {[%clk 0:02:25]} 22. Qg4+ {[%clk 0:01:59]}  Rg7 {[%clk 0:02:24]} 23. Qe6+ {[%clk 0:01:58]}  Kh8 {[%clk 0:02:20]} 24. Bxe4 {[%clk 0:01:58]}  Bxe4 {[%clk 0:02:21]} 25. Qxe4 {[%clk 0:01:55]}  Bf6 {[%clk 0:02:19]} 26. Nd3 {[%clk 0:01:54]}  Qe8 {[%clk 0:02:16]} 27. Qf3 {[%clk 0:01:48]}  Qg6 {[%clk 0:02:15]} 28. Qxa8+ {[%clk 0:01:47]}  Rg8 {[%clk 0:02:13]} 29. Qf3 {[%clk 0:01:46]}  Rf8 {[%clk 0:02:14]} 30. Rad1 {[%clk 0:01:44]}  Bg7 {[%clk 0:02:13]} 31. Nf4 {[%clk 0:01:44]}  Qf5 {[%clk 0:02:12]} 32. Qh5 {[%clk 0:01:42]}  Qc2 {[%clk 0:02:08]} 33. Ng6+ {[%clk 0:01:40]}  Kg8 {[%clk 0:02:09]} 34. Nxf8 {[%clk 0:01:40]}  Kxf8 {[%clk 0:02:10]} 35. g4 {[%clk 0:01:39]}  Qe4 {[%clk 0:02:03]} 36. Qf5+ {[%clk 0:01:38]}  Qxf5 {[%clk 0:02:00]} 37. gxf5 {[%clk 0:01:39]} 1-0


[Site "https://www.chess.com"]

[Event "Titled Tuesday Blitz May 4 2021"]
[White "Ward-Tsh"]
[Black "Samadov, Read"]
[BlackFideId "13417444"]
[WhiteElo "2525"]
[BlackElo "2084"]
[Result "0-1"]
[Round "06"]
[TimeControl "180+1"]
[Date "2021.05.04"]
[WhiteClock "0:00:04"]
[BlackClock "0:01:07"]

1. e4 {[%clk 0:03:00]}  c5 {[%clk 0:03:00]} 2. Nf3 {[%clk 0:03:00]}  d6 {[%clk 0:02:59]} 3. d4 {[%clk 0:03:01]}  cxd4 {[%clk 0:03:00]} 4. Nxd4 {[%clk 0:03:02]}  Nf6 {[%clk 0:03:01]} 5. Nc3 {[%clk 0:03:02]}  a6 {[%clk 0:03:01]} 6. h3 {[%clk 0:03:03]}  e6 {[%clk 0:03:01]} 7. g4 {[%clk 0:03:03]}  Be7 {[%clk 0:03:01]} 8. g5 {[%clk 0:03:03]}  Nfd7 {[%clk 0:03:02]} 9. h4 {[%clk 0:03:04]}  b5 {[%clk 0:03:01]} 10. Be3 {[%clk 0:03:03]}  Bb7 {[%clk 0:03:02]} 11. Bg2 {[%clk 0:03:02]}  b4 {[%clk 0:03:01]} 12. Nce2 {[%clk 0:03:01]}  Nc6 {[%clk 0:03:00]} 13. Qd2 {[%clk 0:03:01]}  a5 {[%clk 0:02:50]} 14. Nxc6 {[%clk 0:03:00]}  Bxc6 {[%clk 0:02:50]} 15. Nd4 {[%clk 0:03:01]}  Bb7 {[%clk 0:02:48]} 16. Nb5 {[%clk 0:02:59]}  Ne5 {[%clk 0:02:43]} 17. Qe2 {[%clk 0:02:54]}  Ba6 {[%clk 0:02:36]} 18. f4 {[%clk 0:02:53]}  Qd7 {[%clk 0:02:34]} 19. fxe5 {[%clk 0:02:50]}  Bxb5 {[%clk 0:02:33]} 20. Qg4 {[%clk 0:02:48]}  dxe5 {[%clk 0:02:31]} 21. h5 {[%clk 0:02:48]}  Qc6 {[%clk 0:02:23]} 22. O-O-O {[%clk 0:02:45]}  b3 {[%clk 0:02:14]} 23. axb3 {[%clk 0:02:43]}  a4 {[%clk 0:02:15]} 24. bxa4 {[%clk 0:02:37]}  Bxa4 {[%clk 0:02:13]} 25. Rd2 {[%clk 0:02:27]}  Bb4 {[%clk 0:02:02]} 26. Qd1 {[%clk 0:01:39]}  Bxd2+ {[%clk 0:02:01]} 27. Qxd2 {[%clk 0:01:36]}  O-O {[%clk 0:01:59]} 28. Qc3 {[%clk 0:01:26]}  Qxc3 {[%clk 0:01:30]} 29. bxc3 {[%clk 0:01:27]}  Rfc8 {[%clk 0:01:29]} 30. Kd2 {[%clk 0:01:22]}  Bxc2 {[%clk 0:01:28]} 31. Rc1 {[%clk 0:01:06]}  Bb3 {[%clk 0:01:25]} 32. Bf1 {[%clk 0:01:04]}  Ra2+ {[%clk 0:01:24]} 33. Ke1 {[%clk 0:01:04]}  Rc2 {[%clk 0:01:23]} 34. Rxc2 {[%clk 0:01:03]}  Bxc2 {[%clk 0:01:24]} 35. c4 {[%clk 0:00:54]}  Bxe4 {[%clk 0:01:24]} 36. c5 {[%clk 0:00:55]}  f5 {[%clk 0:01:24]} 37. gxf6 {[%clk 0:00:51]}  gxf6 {[%clk 0:01:24]} 38. Ba6 {[%clk 0:00:52]}  Ra8 {[%clk 0:01:22]} 39. Bc4 {[%clk 0:00:51]}  Bd5 {[%clk 0:01:22]} 40. Bb5 {[%clk 0:00:48]}  f5 {[%clk 0:01:22]} 41. c6 {[%clk 0:00:48]}  Rc8 {[%clk 0:01:21]} 42. c7 {[%clk 0:00:41]}  Rxc7 {[%clk 0:01:20]} 43. Kd2 {[%clk 0:00:42]}  f4 {[%clk 0:01:20]} 44. Bg1 {[%clk 0:00:43]}  e4 {[%clk 0:01:19]} 45. Bd4 {[%clk 0:00:42]}  e3+ {[%clk 0:01:19]} 46. Kd3 {[%clk 0:00:42]}  Rf7 {[%clk 0:01:17]} 47. Be5 {[%clk 0:00:38]}  Rf5 {[%clk 0:01:13]} 48. Bd6 {[%clk 0:00:36]}  e5 {[%clk 0:01:11]} 49. h6 {[%clk 0:00:32]}  e4+ {[%clk 0:01:11]} 50. Kd4 {[%clk 0:00:31]}  Be6 {[%clk 0:01:08]} 51. Bc6 {[%clk 0:00:11]}  e2 {[%clk 0:01:08]} 52. Bb4 {[%clk 0:00:10]}  f3 {[%clk 0:01:06]} 53. Bxe4 {[%clk 0:00:06]}  f2 {[%clk 0:01:06]} 54. Bxf5 {[%clk 0:00:05]}  Bxf5 {[%clk 0:01:07]} 55. Ke5 {[%clk 0:00:05]}  f1=Q {[%clk 0:01:07]} 56. Bc5 {[%clk 0:00:04]}  e1=Q+ {[%clk 0:01:07]} 0-1


[Site "https://www.chess.com"]

[Event "Titled Tuesday Blitz May 4 2021"]
[White "Wilson, Elvin"]
[Black "Lehtosaari, Mauri"]
[WhiteFideId "2014874"]
[BlackFideId "501999"]
[WhiteElo "2240"]
[BlackElo "2409"]
[Result "0-1"]
[Round "06"]
[TimeControl "180+1"]
[Date "2021.05.04"]
[WhiteClock "0:00:26"]
[BlackClock "0:00:17"]

1. c4 {[%clk 0:03:00]}  c6 {[%clk 0:03:00]} 2. g3 {[%clk 0:03:01]}  d5 {[%clk 0:02:59]} 3. Bg2 {[%clk 0:03:01]}  Nf6 {[%clk 0:03:00]} 4. Nf3 {[%clk 0:03:02]}  a6 {[%clk 0:02:58]} 5. O-O {[%clk 0:02:59]}  g6 {[%clk 0:02:51]} 6. b3 {[%clk 0:02:59]}  Bg7 {[%clk 0:02:51]} 7. Bb2 {[%clk 0:02:59]}  O-O {[%clk 0:02:52]} 8. d3 {[%clk 0:02:59]}  Bg4 {[%clk 0:02:47]} 9. Nbd2 {[%clk 0:02:58]}  Nbd7 {[%clk 0:02:46]} 10. h3 {[%clk 0:02:59]}  Bxf3 {[%clk 0:02:46]} 11. Nxf3 {[%clk 0:02:59]}  e6 {[%clk 0:02:44]} 12. Rb1 {[%clk 0:02:57]}  Rc8 {[%clk 0:02:41]} 13. b4 {[%clk 0:02:56]}  b5 {[%clk 0:02:36]} 14. a4 {[%clk 0:02:45]}  dxc4 {[%clk 0:02:23]} 15. dxc4 {[%clk 0:02:44]}  bxc4 {[%clk 0:02:23]} 16. Qc2 {[%clk 0:02:33]}  Nb6 {[%clk 0:02:21]} 17. Ne5 {[%clk 0:02:28]}  Nfd5 {[%clk 0:02:19]} 18. Bd4 {[%clk 0:02:03]}  Nxb4 {[%clk 0:01:16]} 19. Rxb4 {[%clk 0:01:42]}  Qxd4 {[%clk 0:01:15]} 20. Nxc4 {[%clk 0:01:43]}  Nd5 {[%clk 0:01:06]} 21. Rb7 {[%clk 0:01:32]}  Rb8 {[%clk 0:00:58]} 22. Rfb1 {[%clk 0:01:30]}  Rxb7 {[%clk 0:00:58]} 23. Rxb7 {[%clk 0:01:30]}  c5 {[%clk 0:00:45]} 24. e3 {[%clk 0:01:19]}  Qa1+ {[%clk 0:00:40]} 25. Kh2 {[%clk 0:01:19]}  Nb4 {[%clk 0:00:38]} 26. Qb3 {[%clk 0:01:17]}  Qe1 {[%clk 0:00:34]} 27. f4 {[%clk 0:00:59]}  h5 {[%clk 0:00:30]} 28. Rc7 {[%clk 0:00:53]}  h4 {[%clk 0:00:30]} 29. gxh4 {[%clk 0:00:53]}  Qxh4 {[%clk 0:00:24]} 30. Rxc5 {[%clk 0:00:53]}  Nd5 {[%clk 0:00:24]} 31. Nd2 {[%clk 0:00:42]}  Nf6 {[%clk 0:00:21]} 32. Nf3 {[%clk 0:00:40]}  Ng4+ {[%clk 0:00:21]} 33. Kg1 {[%clk 0:00:40]}  Qf2+ {[%clk 0:00:21]} 34. Kh1 {[%clk 0:00:41]}  Nxe3 {[%clk 0:00:21]} 35. Nh4 {[%clk 0:00:27]}  Nxg2 {[%clk 0:00:17]} 36. Nxg2 {[%clk 0:00:26]}  Qxc5 {[%clk 0:00:17]} 0-1


[Site "https://www.chess.com"]

[Event "Titled Tuesday Blitz May 4 2021"]
[White "Yavorovsky, Valeriy"]
[Black "Sumaneev, Dmitry"]
[WhiteFideId "14121549"]
[BlackFideId "4125312"]
[WhiteElo "2267"]
[BlackElo "2497"]
[Result "1/2-1/2"]
[Round "06"]
[TimeControl "180+1"]
[Date "2021.05.04"]
[WhiteClock "0:00:12"]
[BlackClock "0:00:09"]

1. d4 {[%clk 0:03:00]}  Nf6 {[%clk 0:02:54]} 2. c4 {[%clk 0:02:59]}  c5 {[%clk 0:02:53]} 3. d5 {[%clk 0:02:59]}  b5 {[%clk 0:02:52]} 4. cxb5 {[%clk 0:02:59]}  a6 {[%clk 0:02:51]} 5. bxa6 {[%clk 0:03:00]}  g6 {[%clk 0:02:48]} 6. Nc3 {[%clk 0:03:00]}  Bxa6 {[%clk 0:02:48]} 7. e4 {[%clk 0:03:00]}  Bxf1 {[%clk 0:02:38]} 8. Kxf1 {[%clk 0:02:59]}  d6 {[%clk 0:02:37]} 9. g3 {[%clk 0:02:59]}  Nbd7 {[%clk 0:02:37]} 10. Kg2 {[%clk 0:02:59]}  Bg7 {[%clk 0:02:37]} 11. Nf3 {[%clk 0:02:59]}  O-O {[%clk 0:02:37]} 12. a4 {[%clk 0:02:58]}  Ra6 {[%clk 0:02:36]} 13. Bd2 {[%clk 0:02:50]}  Qa8 {[%clk 0:02:33]} 14. Qc2 {[%clk 0:02:48]}  c4 {[%clk 0:02:25]} 15. Be3 {[%clk 0:02:42]}  Rc8 {[%clk 0:02:23]} 16. Nd4 {[%clk 0:02:41]}  Ne5 {[%clk 0:02:22]} 17. h3 {[%clk 0:02:39]}  Nfd7 {[%clk 0:02:08]} 18. f4 {[%clk 0:02:30]}  Nd3 {[%clk 0:02:08]} 19. Nc6 {[%clk 0:02:30]}  Raxc6 {[%clk 0:01:56]} 20. dxc6 {[%clk 0:02:29]}  Qxc6 {[%clk 0:01:57]} 21. Nd5 {[%clk 0:02:09]}  Kf8 {[%clk 0:01:56]} 22. Rhd1 {[%clk 0:02:08]}  e6 {[%clk 0:01:54]} 23. Rxd3 {[%clk 0:01:35]}  cxd3 {[%clk 0:01:41]} 24. Qxc6 {[%clk 0:01:34]}  Rxc6 {[%clk 0:01:42]} 25. Nb4 {[%clk 0:01:34]}  Rc8 {[%clk 0:01:15]} 26. Nxd3 {[%clk 0:01:33]}  Bxb2 {[%clk 0:00:18]} 27. Nxb2 {[%clk 0:01:26]}  Rc2+ {[%clk 0:00:18]} 28. Kf3 {[%clk 0:01:26]}  Rxb2 {[%clk 0:00:18]} 29. a5 {[%clk 0:01:25]}  Rb8 {[%clk 0:00:19]} 30. a6 {[%clk 0:01:24]}  Ra8 {[%clk 0:00:19]} 31. a7 {[%clk 0:01:23]}  Ke7 {[%clk 0:00:19]} 32. Rb1 {[%clk 0:01:20]}  Kd8 {[%clk 0:00:19]} 33. Rb5 {[%clk 0:00:51]}  Kc7 {[%clk 0:00:19]} 34. e5 {[%clk 0:00:51]}  Kc6 {[%clk 0:00:17]} 35. Ra5 {[%clk 0:00:49]}  d5 {[%clk 0:00:15]} 36. g4 {[%clk 0:00:45]}  Kb7 {[%clk 0:00:14]} 37. Bd4 {[%clk 0:00:44]}  Kc6 {[%clk 0:00:13]} 38. f5 {[%clk 0:00:43]}  gxf5 {[%clk 0:00:12]} 39. gxf5 {[%clk 0:00:42]}  Kb7 {[%clk 0:00:12]} 40. Kf4 {[%clk 0:00:42]}  Rg8 {[%clk 0:00:12]} 41. fxe6 {[%clk 0:00:19]}  fxe6 {[%clk 0:00:11]} 42. Ra3 {[%clk 0:00:19]}  h6 {[%clk 0:00:09]} 43. h4 {[%clk 0:00:15]}  Ka8 {[%clk 0:00:09]} 44. Rc3 {[%clk 0:00:14]}  Kb7 {[%clk 0:00:08]} 45. Rb3+ {[%clk 0:00:13]}  Ka8 {[%clk 0:00:08]} 46. Rc3 {[%clk 0:00:13]}  Kb7 {[%clk 0:00:09]} 47. Rb3+ {[%clk 0:00:12]}  Ka8 {[%clk 0:00:09]} 48. Rc3 {[%clk 0:00:12]} 1/2-1/2


[Site "https://www.chess.com"]

[Event "Titled Tuesday Blitz May 4 2021"]
[White "Yurtseven, Melih"]
[Black "Novikov, Evgenij"]
[WhiteFideId "6312160"]
[BlackFideId "4125380"]
[WhiteElo "2160"]
[BlackElo "2242"]
[Result "1-0"]
[Round "06"]
[TimeControl "180+1"]
[Date "2021.05.04"]
[WhiteClock "0:00:24"]
[BlackClock "0:00:03"]

1. d4 {[%clk 0:03:00]}  d5 {[%clk 0:02:59]} 2. c4 {[%clk 0:03:01]}  e6 {[%clk 0:02:59]} 3. Nc3 {[%clk 0:03:00]}  Nf6 {[%clk 0:02:59]} 4. cxd5 {[%clk 0:03:01]}  exd5 {[%clk 0:02:59]} 5. Bg5 {[%clk 0:03:01]}  Nbd7 {[%clk 0:02:58]} 6. e3 {[%clk 0:03:02]}  c6 {[%clk 0:02:56]} 7. Bd3 {[%clk 0:03:02]}  h6 {[%clk 0:02:54]} 8. Bh4 {[%clk 0:03:02]}  Be7 {[%clk 0:02:53]} 9. Nge2 {[%clk 0:03:01]}  O-O {[%clk 0:02:53]} 10. Qc2 {[%clk 0:03:00]}  Re8 {[%clk 0:02:53]} 11. h3 {[%clk 0:02:55]}  a6 {[%clk 0:02:47]} 12. O-O-O {[%clk 0:02:52]}  Ne4 {[%clk 0:02:40]} 13. Bg3 {[%clk 0:02:37]}  Nxg3 {[%clk 0:02:34]} 14. Nxg3 {[%clk 0:02:38]}  Nf6 {[%clk 0:02:30]} 15. e4 {[%clk 0:02:30]}  dxe4 {[%clk 0:02:25]} 16. Ngxe4 {[%clk 0:02:31]}  Be6 {[%clk 0:02:21]} 17. Kb1 {[%clk 0:02:27]}  Qa5 {[%clk 0:02:10]} 18. a3 {[%clk 0:02:02]}  Rad8 {[%clk 0:02:08]} 19. Nxf6+ {[%clk 0:01:52]}  Bxf6 {[%clk 0:02:08]} 20. Ne2 {[%clk 0:01:53]}  c5 {[%clk 0:01:43]} 21. Qxc5 {[%clk 0:01:34]}  Qxc5 {[%clk 0:01:42]} 22. dxc5 {[%clk 0:01:35]}  Rxd3 {[%clk 0:01:42]} 23. Rxd3 {[%clk 0:01:36]}  Bf5 {[%clk 0:01:41]} 24. Nc1 {[%clk 0:01:36]}  Rc8 {[%clk 0:00:51]} 25. b4 {[%clk 0:01:29]}  a5 {[%clk 0:00:46]} 26. g4 {[%clk 0:01:19]}  Bg6 {[%clk 0:00:38]} 27. f4 {[%clk 0:01:15]}  Bxd3+ {[%clk 0:00:26]} 28. Nxd3 {[%clk 0:01:16]}  axb4 {[%clk 0:00:27]} 29. axb4 {[%clk 0:01:16]}  Ra8 {[%clk 0:00:24]} 30. Kc2 {[%clk 0:01:11]}  Ra2+ {[%clk 0:00:24]} 31. Kb3 {[%clk 0:01:06]}  Rd2 {[%clk 0:00:24]} 32. Kc4 {[%clk 0:01:05]}  Rc2+ {[%clk 0:00:24]} 33. Kb5 {[%clk 0:01:03]}  Rd2 {[%clk 0:00:19]} 34. Ne5 {[%clk 0:01:01]}  Rd4 {[%clk 0:00:18]} 35. Rf1 {[%clk 0:00:47]}  g5 {[%clk 0:00:18]} 36. c6 {[%clk 0:00:38]}  Bxe5 {[%clk 0:00:13]} 37. fxe5 {[%clk 0:00:37]}  bxc6+ {[%clk 0:00:14]} 38. Kc5 {[%clk 0:00:36]}  Re4 {[%clk 0:00:10]} 39. Rb1 {[%clk 0:00:32]}  Rxe5+ {[%clk 0:00:06]} 40. Kxc6 {[%clk 0:00:32]}  Re6+ {[%clk 0:00:07]} 41. Kc7 {[%clk 0:00:30]}  Re3 {[%clk 0:00:04]} 42. b5 {[%clk 0:00:30]}  Rxh3 {[%clk 0:00:05]} 43. b6 {[%clk 0:00:30]}  Re3 {[%clk 0:00:04]} 44. b7 {[%clk 0:00:30]}  Re7+ {[%clk 0:00:03]} 45. Kd6 {[%clk 0:00:28]}  Re6+ {[%clk 0:00:02]} 46. Kd5 {[%clk 0:00:28]}  Re8 {[%clk 0:00:02]} 47. Rc1 {[%clk 0:00:24]}  Rb8 {[%clk 0:00:03]} 48. Rc8+ {[%clk 0:00:24]} 1-0


[Site "https://www.chess.com"]